bitfinex/quotes_BTCUSD_20241101
["timestamp","ask_amount","ask_price","bid_price","bid_amount"]
[1730424900679,0.143416,69727.0,69726.0,0.06566405]
[1730424900881,0.14342,69725.0,69717.0,0.0921]
[1730424901097,0.14342,69725.0,69723.0,0.21560708]
[1730424901098,0.286841,69725.0,69723.0,0.21560708]
[1730424901308,0.005,69726.0,69718.0,0.13845525]
[1730424901520,0.00795564,69724.0,69719.0,0.21560708]
[1730424901736,0.005,69726.0,69720.0,0.19741528]
[1730424901960,0.27123469,69740.0,69722.0,0.143426]
[1730424901961,0.00795564,69723.0,69722.0,0.143426]
[1730424902174,0.001626,69740.0,69720.0,0.05896003]
[1730424902175,0.143428,69721.0,69720.0,0.05896003]
[1730424902447,0.143427,69722.0,69720.0,0.15356125]
[1730424902669,0.143434,69718.0,69717.0,0.0921]
[1730424903090,0.143434,69718.0,69708.0,0.0752]
[1730424903091,0.005,69716.0,69708.0,0.0752]
[1730424903328,0.005,69716.0,69697.0,0.21560708]
[1730424903329,0.005,69703.0,69697.0,0.21560708]
[1730424903532,0.13845525,69715.0,69697.0,0.21560708]
[1730424903533,0.148476,69698.0,69697.0,0.21560708]
[1730424904001,0.143478,69697.0,69696.0,0.000821]
[1730424904209,0.148478,69697.0,69696.0,0.000821]
[1730424904866,0.15643364,69697.0,69696.0,0.0100052]
[1730424905805,0.01295564,69697.0,69696.0,0.0100052]
[1730424906021,0.00795564,69697.0,69696.0,0.31494045]
[1730424906578,0.005,69727.0,69715.0,0.14344]
[1730424906767,0.005,69743.0,69716.0,0.13845525]
[1730424906768,0.143415,69728.0,69716.0,0.13845525]
[1730424906988,0.145063,69725.0,69716.0,0.13845525]
[1730424907219,0.00789226,69724.0,69716.0,0.13845525]
[1730424907459,0.00789226,69724.0,69717.0,0.04253493]
[1730424907711,0.15131526,69724.0,69718.0,0.13845525]
[1730424907930,0.15631526,69724.0,69718.0,0.13845525]
[1730424908601,0.00789226,69724.0,69718.0,0.13845525]
[1730424908816,0.00789226,69724.0,69719.0,0.03244262]
[1730424909090,0.001642,69725.0,69720.0,0.13845525]
[1730424909329,0.00789226,69723.0,69722.0,0.45293308]
[1730424909566,0.00789226,69723.0,69722.0,0.237326]
[1730424909808,0.00789226,69723.0,69722.0,0.31158858]
[1730424910024,0.001642,69725.0,69724.0,0.143422]
[1730424913345,0.001642,69725.0,69724.0,0.148422]
[1730424913568,0.001642,69725.0,69724.0,0.30987725]
[1730424913793,0.286733,69752.0,69727.0,0.023]
[1730424913794,0.00491,69743.0,69727.0,0.023]
[1730424914009,0.00491,69743.0,69730.0,0.28682]
[1730424914245,0.00795794,69742.0,69732.0,0.286812]
[1730424914461,0.00491,69741.0,69733.0,0.13845525]
[1730424914676,0.00795794,69741.0,69733.0,0.42526225]
[1730424914909,0.28834,69756.0,69736.0,0.286795]
[1730424915133,0.001626,69756.0,69739.0,0.286783]
[1730424915395,0.001626,69756.0,69740.0,0.13845525]
[1730424915396,0.00799016,69751.0,69740.0,0.13845525]
[1730424915672,0.00799016,69751.0,69738.0,0.0939]
[1730424915673,0.00491,69754.0,69749.0,0.21560708]
[1730424915892,0.001626,69756.0,69749.0,0.21560708]
[1730424915893,0.001626,69756.0,69755.0,0.143358]
[1730424916125,0.001626,69756.0,69755.0,0.4376745]
[1730424916576,0.001626,69756.0,69755.0,0.4426745]
[1730424917065,0.001626,69762.0,69761.0,0.44154302]
[1730424917290,0.001626,69766.0,69761.0,0.44154302]
[1730424917291,0.001626,69766.0,69765.0,0.148428]
[1730424917514,0.001626,69766.0,69765.0,0.30988325]
[1730424917744,0.001626,69766.0,69765.0,0.44309908]
[1730424918734,0.001624,69791.0,69783.0,0.240701]
[1730424918983,0.001624,69791.0,69783.0,0.48855625]
[1730424919223,0.001624,69791.0,69790.0,0.143287]
[1730424919466,0.001624,69791.0,69790.0,0.30974225]
[1730424919677,0.001624,69791.0,69790.0,0.30474225]
[1730424920551,0.001624,69791.0,69790.0,0.30974225]
[1730424921606,0.001624,69791.0,69790.0,0.13845525]
[1730424921853,0.001624,69791.0,69790.0,0.18096918]
[1730424922090,0.001624,69791.0,69790.0,0.13845525]
[1730424922313,0.144908,69791.0,69790.0,0.13845525]
[1730424922526,0.144908,69791.0,69783.0,0.0974]
[1730424922527,0.00491,69788.0,69783.0,0.0974]
[1730424922728,0.00491,69788.0,69786.0,0.21560708]
[1730424922729,0.143294,69787.0,69786.0,0.21560708]
[1730424922935,0.00491,69788.0,69771.0,0.21560708]
[1730424922936,0.143299,69784.0,69771.0,0.21560708]
[1730424923160,0.143323,69772.0,69771.0,0.21560708]
[1730424923370,0.143317,69776.0,69771.0,0.21560708]
[1730424923571,0.00491,69779.0,69771.0,0.21560708]
[1730424923572,0.00813869,69772.0,69771.0,0.21560708]
[1730424923774,0.00491,69779.0,69771.0,0.21560708]
[1730424923775,0.286623,69778.0,69771.0,0.21560708]
[1730424923981,0.00813869,69772.0,69771.0,0.23716779]
[1730424924189,0.00813869,69772.0,69771.0,0.16001596]
[1730424924584,0.14332,69774.0,69771.0,0.16001596]
[1730424924820,0.14332,69774.0,69772.0,0.13845525]
[1730424925039,0.00491,69787.0,69773.0,0.0160016]
[1730424925278,0.00491,69787.0,69774.0,0.13845525]
[1730424925513,0.001624,69791.0,69779.0,0.21560708]
[1730424925773,0.001624,69791.0,69781.0,0.429915]
[1730424926010,0.001624,69791.0,69784.0,0.143298]
[1730424926247,0.001624,69791.0,69785.0,0.21552681]
[1730424926485,0.001624,69791.0,69787.0,0.143292]
[1730424926701,0.001624,69791.0,69785.0,0.21266157]
[1730424926702,0.001624,69791.0,69788.0,0.13845525]
[1730424927401,0.00809884,69790.0,69789.0,0.21560708]
[1730424927610,0.00809884,69790.0,69789.0,0.35406233]
[1730424927828,0.001624,69791.0,69789.0,0.20994112]
[1730424928046,0.001624,69791.0,69790.0,0.49734933]
[1730424928260,0.001624,69791.0,69790.0,0.52034933]
[1730424928492,0.001624,69791.0,69790.0,0.30974225]
[1730424930090,0.001624,69791.0,69790.0,0.28174225]
[1730424930326,0.001624,69791.0,69790.0,0.4033734]
[1730424931251,0.001624,69791.0,69790.0,0.4263734]
[1730424931492,0.001624,69791.0,69790.0,0.4313734]
[1730424932653,0.001624,69791.0,69790.0,0.4314634]
[1730424933359,0.001624,69791.0,69790.0,0.5223634]
[1730424934068,0.001624,69791.0,69790.0,0.6075634]
[1730424934298,0.001624,69791.0,69790.0,0.6055634]
[1730424935938,0.001624,69791.0,69790.0,0.5774734]
[1730424936368,0.001624,69791.0,69790.0,0.4341864]
[1730424936807,0.001624,69791.0,69790.0,0.31255525]
[1730424937035,0.001624,69791.0,69790.0,0.13845525]
[1730424937259,0.001624,69791.0,69780.0,0.21560708]
[1730424937260,0.00491,69790.0,69780.0,0.21560708]
[1730424937463,0.429873,69788.0,69787.0,0.21560708]
[1730424937697,0.429873,69788.0,69787.0,0.02156071]
[1730424937909,0.00491,69790.0,69781.0,0.13845525]
[1730424938112,0.01149078,69788.0,69781.0,0.13845525]
[1730424938317,0.143291,69788.0,69781.0,0.13845525]
[1730424938528,0.01149078,69787.0,69784.0,0.000822]
[1730424938737,0.01149078,69787.0,69786.0,0.143295]
[1730424938947,0.006534,69791.0,69786.0,0.143295]
[1730424939148,0.006534,69791.0,69785.0,0.286594]
[1730424939355,0.006534,69791.0,69784.0,0.000822]
[1730424939568,0.006534,69791.0,69785.0,0.143295]
[1730424940013,0.006534,69791.0,69784.0,0.000822]
[1730424940619,0.15474667,69790.0,69784.0,0.000822]
[1730424940865,0.01145967,69790.0,69784.0,0.000822]
[1730424941317,0.143289,69789.0,69784.0,0.000822]
[1730424941725,0.149819,69791.0,69784.0,0.000822]
[1730424941939,0.143297,69785.0,69784.0,0.13927725]
[1730424942148,0.00491,69788.0,69784.0,0.13927725]
[1730424942357,0.01145967,69785.0,69784.0,0.13927725]
[1730424942579,0.148202,69788.0,69784.0,0.13927725]
[1730424942795,0.148202,69788.0,69785.0,0.03548843]
[1730424943001,0.01145967,69787.0,69785.0,0.03548843]
[1730424943451,0.143295,69786.0,69785.0,0.03548843]
[1730424943659,0.01145967,69787.0,69784.0,0.000822]
[1730424943791,0.00491,69788.0,69784.0,0.13927725]
[1730424943990,0.01145967,69786.0,69784.0,0.13927725]
[1730424944190,0.00491,69788.0,69784.0,0.13927725]
[1730424944395,0.00491,69788.0,69785.0,0.01392772]
[1730424944599,0.00491,69787.0,69785.0,0.01392772]
[1730424945628,0.00491,69790.0,69785.0,0.01392772]
[1730424945835,0.00491,69790.0,69787.0,0.21560708]
[1730424946051,0.001624,69791.0,69788.0,0.28461071]
[1730424946250,0.001624,69791.0,69789.0,0.04064894]
[1730424946454,0.001624,69791.0,69790.0,0.14132057]
[1730424947097,0.001624,69791.0,69790.0,0.31545503]
[1730424947301,0.001624,69791.0,69790.0,0.39495503]
[1730424947803,0.001624,69791.0,69790.0,0.48975503]
[1730424948015,0.001624,69791.0,69790.0,0.62823233]
[1730424948236,0.001624,69791.0,69790.0,0.63332233]
[1730424948470,0.001624,69791.0,69790.0,0.73332233]
[1730424949307,0.001624,69791.0,69790.0,0.73532233]
[1730424949446,0.001624,69791.0,69790.0,0.73332233]
[1730424949854,0.001624,69793.0,69792.0,0.148372]
[1730424950059,0.001652,69800.0,69793.0,0.25037]
[1730424950280,0.001652,69800.0,69794.0,0.273368]
[1730424950487,0.001652,69800.0,69794.0,0.64139105]
[1730424950691,9e-05,69812.0,69809.0,0.271338]
[1730424950893,9e-05,69812.0,69809.0,0.81391362]
[1730424951064,9e-05,69812.0,69809.0,0.95439092]
[1730424951467,9e-05,69812.0,69809.0,0.9098359]
[1730424951848,9e-05,69812.0,69809.0,0.90981405]
[1730424952519,0.001652,69825.0,69809.0,0.90981405]
[1730424952520,0.001652,69825.0,69822.0,0.005]
[1730424952826,0.001652,69825.0,69824.0,0.57602482]
[1730424953024,0.001652,69825.0,69824.0,0.75633808]
[1730424953229,0.001652,69825.0,69824.0,0.75933808]
[1730424954624,0.001652,69825.0,69824.0,0.76133808]
[1730424954828,0.001652,69825.0,69824.0,0.83713808]
[1730424955047,0.001652,69825.0,69824.0,0.93333808]
[1730424955293,0.001652,69825.0,69824.0,0.92264715]
[1730424955503,0.001624,69836.0,69835.0,0.54063657]
[1730424955704,0.001624,69836.0,69835.0,0.79063478]
[1730424956151,0.001624,69836.0,69835.0,0.80130766]
[1730424956380,0.001624,69836.0,69835.0,0.97530766]
[1730424956588,0.001624,69836.0,69835.0,0.97330766]
[1730424956788,0.00165,69846.0,69845.0,0.41752657]
[1730424957003,0.00165,69846.0,69845.0,0.68868756]
[1730424957206,0.00165,69846.0,69845.0,0.67801468]
[1730424957411,0.00165,69846.0,69845.0,0.67810468]
[1730424958444,0.00165,69846.0,69845.0,0.68010468]
[1730424958679,0.0185649,69855.0,69854.0,0.350145]
[1730424958913,0.0185649,69855.0,69854.0,0.75882381]
[1730424959146,0.0185649,69855.0,69854.0,0.79897562]
[1730424959384,0.01144445,69855.0,69854.0,0.79897562]
[1730424959631,0.001624,69861.0,69854.0,0.79897562]
[1730424959632,0.001624,69861.0,69860.0,0.171233]
[1730424959876,0.001624,69861.0,69860.0,0.52844615]
[1730424960097,0.001624,69861.0,69860.0,0.64885279]
[1730424960343,0.001624,69861.0,69860.0,0.74885279]
[1730424960575,0.001624,69861.0,69860.0,0.74685279]
[1730424960809,0.001624,69861.0,69860.0,0.42586652]
[1730424961008,0.001624,69861.0,69860.0,0.13845525]
[1730424962052,0.001624,69861.0,69852.0,0.21560708]
[1730424962270,0.001624,69861.0,69853.0,0.13845525]
[1730424962271,0.01327715,69861.0,69853.0,0.13845525]
[1730424962495,0.001624,69861.0,69853.0,0.13845525]
[1730424962702,0.001624,69861.0,69850.0,0.000242]
[1730424962703,0.148071,69851.0,69850.0,0.000242]
[1730424963317,0.15972415,69851.0,69850.0,0.000242]
[1730424963692,0.16472415,69851.0,69850.0,0.000242]
[1730424963895,0.16472415,69851.0,69834.0,0.21560708]
[1730424963896,0.148104,69835.0,69834.0,0.21560708]
[1730424964462,0.15975715,69835.0,69834.0,0.21560708]
[1730424964729,0.15975715,69835.0,69807.0,0.21560708]
[1730424964730,0.143217,69824.0,69807.0,0.21560708]
[1730424964888,0.148127,69824.0,69807.0,0.21560708]
[1730424965061,0.15968974,69824.0,69823.0,0.23716779]
[1730424965464,0.01156274,69824.0,69823.0,0.23716779]
[1730424965753,0.01647274,69824.0,69823.0,0.23716779]
[1730424965954,0.15968974,69824.0,69823.0,0.02156071]
[1730424966144,0.00491,69823.0,69809.0,0.143247]
[1730424966428,0.00491,69823.0,69816.0,0.13845525]
[1730424966638,0.01156274,69822.0,69816.0,0.13845525]
[1730424966848,0.01156274,69822.0,69807.0,0.21560708]
[1730424966849,0.143242,69812.0,69807.0,0.21560708]
[1730424967068,0.00491,69814.0,69808.0,0.16001596]
[1730424967278,0.01156274,69811.0,69808.0,0.16001596]
[1730424967491,0.00491,69822.0,69808.0,0.16001596]
[1730424967696,0.26883449,69828.0,69808.0,0.16001596]
[1730424967697,0.00491,69825.0,69809.0,0.00286463]
[1730424967904,0.148125,69825.0,69810.0,0.42494625]
[1730424968097,0.00491,69828.0,69814.0,0.21560708]
[1730424968299,0.00491,69826.0,69815.0,0.13845525]
[1730424968432,0.143214,69826.0,69816.0,0.21560708]
[1730424968634,0.143204,69831.0,69817.0,0.28168625]
[1730424968832,0.143204,69831.0,69816.0,0.21560708]
[1730424968833,0.00491,69835.0,69819.0,0.023]
[1730424969032,0.00491,69835.0,69820.0,0.17617048]
[1730424969258,0.143204,69831.0,69820.0,0.17617048]
[1730424969439,0.143204,69831.0,69823.0,0.21560708]
[1730424969637,0.143199,69833.0,69824.0,0.13845525]
[1730424969870,0.143196,69834.0,69824.0,0.13845525]
[1730424970062,0.286381,69837.0,69825.0,0.03917776]
[1730424970259,0.148104,69835.0,69826.0,0.13845525]
[1730424970460,0.148102,69837.0,69831.0,0.21560708]
[1730424970661,0.00491,69847.0,69832.0,0.14131905]
[1730424970952,0.91283,69850.0,69832.0,0.13845525]
[1730424971183,0.00491,69850.0,69838.0,0.143187]
[1730424971401,0.00491,69852.0,69839.0,0.13845525]
[1730424971638,0.26883449,69860.0,69833.0,0.04248682]
[1730424971639,0.00491,69841.0,69833.0,0.04248682]
[1730424971834,0.00491,69841.0,69830.0,0.21560708]
[1730424971835,0.143202,69831.0,69830.0,0.21560708]
[1730424972036,0.148112,69831.0,69830.0,0.21560708]
[1730424972473,0.15916491,69831.0,69830.0,0.21560708]
[1730424972901,0.01105291,69831.0,69830.0,0.21560708]
[1730424973328,0.143202,69831.0,69830.0,0.02156071]
[1730424973535,0.143207,69829.0,69820.0,0.03771523]
[1730424973799,0.00491,69825.0,69824.0,0.13845525]
[1730424974000,0.1,69835.0,69820.0,0.03771523]
[1730424974001,0.143209,69828.0,69820.0,0.03771523]
[1730424974208,0.01596291,69825.0,69821.0,0.00286416]
[1730424974332,0.148125,69825.0,69823.0,0.21560708]
[1730424974546,0.143198,69833.0,69824.0,0.17791942]
[1730424974754,0.01105291,69832.0,69824.0,0.17791942]
[1730424974949,0.00491,69828.0,69824.0,0.17791942]
[1730424975165,0.286399,69833.0,69824.0,0.03946417]
[1730424975166,0.00491,69826.0,69824.0,0.03946417]
[1730424975364,0.00491,69826.0,69820.0,0.03771523]
[1730424975365,0.143218,69824.0,69820.0,0.03771523]
[1730424975601,0.143218,69824.0,69823.0,0.21560708]
[1730424975775,0.00491,69826.0,69820.0,0.17617048]
[1730424975979,0.00491,69826.0,69823.0,0.21560708]
[1730424976353,0.148123,69826.0,69823.0,0.13845525]
[1730424976569,0.148123,69826.0,69820.0,0.03771523]
[1730424976570,0.28643,69825.0,69824.0,0.01761705]
[1730424976776,0.00491,69826.0,69817.0,0.21560708]
[1730424976777,0.286434,69824.0,69817.0,0.21560708]
[1730424976986,0.143229,69819.0,69818.0,0.13845525]
[1730424977199,0.00491,69824.0,69803.0,0.14326]
[1730424977415,0.143227,69819.0,69818.0,0.21560708]
[1730424977624,0.00491,69824.0,69810.0,0.13845525]
[1730424977836,0.716095,69823.0,69814.0,0.21560708]
[1730424978062,0.143235,69815.0,69814.0,0.21560708]
[1730424978276,0.00491,69824.0,69814.0,0.21560708]
[1730424978489,0.286461,69818.0,69814.0,0.21560708]
[1730424978709,0.143235,69815.0,69814.0,0.21560708]
[1730424978914,0.143235,69815.0,69814.0,0.04929786]
[1730424979141,0.143241,69812.0,69811.0,0.04481623]
[1730424979350,0.143241,69812.0,69803.0,0.00286478]
[1730424979567,0.00491,69818.0,69803.0,0.00286478]
[1730424979775,0.143232,69817.0,69808.0,0.14131983]
[1730424980169,0.00491,69818.0,69808.0,0.14131983]
[1730424980522,0.148139,69818.0,69808.0,0.14131983]
[1730424980721,0.00491,69818.0,69809.0,0.05001799]
[1730424980949,0.00491,69818.0,69810.0,0.13845525]
[1730424981328,0.00491,69818.0,69811.0,0.143243]
[1730424981532,0.00491,69818.0,69814.0,0.21560708]
[1730424981735,0.00491,69823.0,69817.0,0.14323]
[1730424981936,0.00491,69823.0,69814.0,0.21560708]
[1730424981937,0.00491,69823.0,69818.0,0.18829893]
[1730424982394,0.011044,69822.0,69818.0,0.18829893]
[1730424982573,0.011044,69822.0,69821.0,0.35883008]
[1730424982811,0.07508455,69839.0,69824.0,0.0771]
[1730424982812,0.00491,69835.0,69824.0,0.0771]
[1730424983013,0.00491,69844.0,69826.0,0.023]
[1730424983275,0.0269,69876.0,69826.0,0.023]
[1730424983276,0.011044,69834.0,69832.0,0.13845525]
[1730424983373,0.00491,69859.0,69834.0,0.0951]
[1730424983572,0.001624,69861.0,69834.0,0.0951]
[1730424983573,0.011044,69858.0,69851.0,0.143161]
[1730424983773,0.001624,69861.0,69842.0,0.1009]
[1730424983774,0.001624,69861.0,69855.0,0.143151]
[1730424984010,0.001624,69861.0,69842.0,0.1009]
[1730424984011,0.001624,69861.0,69856.0,0.28160625]
[1730424984255,0.001624,69861.0,69859.0,0.21560708]
[1730424984389,0.001624,69861.0,69860.0,0.13845525]
[1730424984754,0.001624,69861.0,69857.0,0.02816063]
[1730424984755,0.143147,69858.0,69857.0,0.02816063]
[1730424985106,0.143147,69858.0,69847.0,0.21560708]
[1730424985107,0.01110874,69858.0,69847.0,0.21560708]
[1730424985326,0.01110874,69858.0,69857.0,0.21560708]
[1730424985327,0.15425574,69858.0,69857.0,0.21560708]
[1730424985531,0.01110874,69858.0,69857.0,0.13845525]
[1730424985892,0.00491,69860.0,69857.0,0.13845525]
[1730424986095,0.00491,69860.0,69847.0,0.21560708]
[1730424986304,0.00491,69860.0,69855.0,0.21560708]
[1730424986305,0.143151,69856.0,69855.0,0.21560708]
[1730424986707,0.00491,69858.0,69848.0,0.16001596]
[1730424986907,0.286307,69855.0,69848.0,0.16001596]
[1730424987133,0.143165,69849.0,69848.0,0.16001596]
[1730424987503,0.143165,69849.0,69848.0,0.02156071]
[1730424987708,0.14318,69842.0,69840.0,0.21560708]
[1730424987912,0.143182,69841.0,69840.0,0.21560708]
[1730424988138,0.55517049,69848.0,69830.0,0.29550708]
[1730424988139,0.286374,69839.0,69830.0,0.29550708]
[1730424988353,0.286374,69839.0,69837.0,0.21560708]
[1730424988354,0.143189,69838.0,69837.0,0.21560708]
[1730424988691,0.143189,69838.0,69837.0,0.02156071]
[1730424988692,0.15429774,69838.0,69837.0,0.02156071]
[1730424988912,0.15429774,69838.0,69831.0,0.13845525]
[1730424989425,0.01110874,69838.0,69831.0,0.13845525]
[1730424989765,0.143191,69837.0,69831.0,0.13845525]
[1730424989970,0.286373,69839.0,69832.0,0.21560708]
[1730424990199,0.01110874,69838.0,69833.0,0.13845525]
[1730424990385,0.00491,69840.0,69834.0,0.04339623]
[1730424990574,0.01110874,69839.0,69835.0,0.13845525]
[1730424990782,0.01110874,69839.0,69836.0,0.00286355]
[1730424990983,0.00491,69840.0,69837.0,0.13845525]
[1730424991184,0.143175,69845.0,69837.0,0.13845525]
[1730424991185,0.00491,69850.0,69839.0,0.21560708]
[1730424991407,0.286296,69858.0,69848.0,0.143167]
[1730424991408,0.00491,69858.0,69848.0,0.143167]
[1730424991622,0.14805,69862.0,69850.0,0.143163]
[1730424991830,0.00491,69865.0,69852.0,0.023]
[1730424991991,0.00491,69865.0,69851.0,0.35406233]
[1730424991992,0.00491,69872.0,69853.0,0.22005525]
[1730424992196,0.26883449,69876.0,69860.0,0.143143]
[1730424992197,0.00491,69876.0,69860.0,0.143143]
[1730424992418,0.001622,69880.0,69860.0,0.48311165]
[1730424992419,0.006532,69880.0,69860.0,0.48311165]
[1730424992640,0.001622,69880.0,69860.0,0.58533948]
[1730424993365,0.001622,69880.0,69860.0,0.58033948]
[1730424993775,0.001622,69880.0,69879.0,0.143104]
[1730424993996,0.001622,69880.0,69879.0,0.16145525]
[1730424994223,0.001622,69880.0,69879.0,0.22053408]
[1730424994582,0.001622,69880.0,69879.0,0.19753408]
[1730424994792,0.001622,69880.0,69879.0,0.13845525]
[1730424995216,0.001622,69880.0,69879.0,0.52311786]
[1730424995411,0.001622,69880.0,69879.0,0.61375633]
[1730424996250,0.001622,69880.0,69879.0,0.71875633]
[1730424996448,0.001622,69906.0,69879.0,0.71875633]
[1730424996449,0.001622,69906.0,69902.0,9e-05]
[1730424996668,0.001622,69906.0,69903.0,0.14846425]
[1730424996863,0.143052,69905.0,69903.0,0.14846425]
[1730424996994,0.001622,69906.0,69903.0,0.14846425]
[1730424997200,0.01119064,69905.0,69903.0,0.14846425]
[1730424997854,0.01119064,69905.0,69904.0,0.21560708]
[1730424998052,0.01119064,69905.0,69904.0,0.17486238]
[1730424998519,0.001622,69906.0,69904.0,0.17486238]
[1730424998724,0.001622,69906.0,69905.0,0.13845525]
[1730424999340,0.001622,69906.0,69905.0,0.14131593]
[1730424999512,0.001622,69906.0,69905.0,0.13845525]
[1730424999713,0.001622,69906.0,69905.0,0.20958939]
[1730425000096,0.144671,69906.0,69905.0,0.07113414]
[1730425000309,0.144671,69906.0,69889.0,0.243172]
[1730425000310,0.143065,69899.0,69889.0,0.1955]
[1730425000520,0.143055,69903.0,69898.0,0.21560708]
[1730425000895,0.001622,69906.0,69899.0,0.13845525]
[1730425001282,0.001622,69906.0,69900.0,0.00081216]
[1730425001502,0.001622,69906.0,69901.0,0.345614]
[1730425001724,0.001622,69906.0,69902.0,0.00286064]
[1730425001909,0.001622,69906.0,69903.0,0.13845525]
[1730425002112,0.001622,69906.0,69905.0,0.29640708]
[1730425002233,0.001622,69906.0,69905.0,0.38530625]
[1730425002438,0.001622,69906.0,69905.0,0.45885865]
[1730425002863,0.001622,69906.0,69905.0,0.31580765]
[1730425003099,0.001622,69906.0,69905.0,0.29280765]
[1730425003300,0.001622,69906.0,69905.0,0.33885525]
[1730425003534,0.001622,69906.0,69905.0,0.48190625]
[1730425005744,0.001622,69906.0,69905.0,0.58699625]
[1730425006473,9e-05,69907.0,69906.0,0.271139]
[1730425006685,0.00162,69920.0,69919.0,0.143022]
[1730425006887,0.00162,69920.0,69919.0,0.35308905]
[1730425007289,0.00162,69920.0,69919.0,0.46778905]
[1730425008493,0.00162,69920.0,69919.0,0.56778905]
[1730425008809,0.00162,69920.0,69919.0,0.65138905]
[1730425009839,0.0185649,69925.0,69920.0,0.26611]
[1730425009967,0.0185649,69925.0,69920.0,0.49830966]
[1730425010176,0.0185649,69925.0,69920.0,0.37521966]
[1730425010378,0.0185649,69925.0,69920.0,0.23219966]
[1730425010588,0.0185649,69925.0,69920.0,0.13845525]
[1730425011007,0.0185649,69925.0,69920.0,0.28147525]
[1730425011842,0.0185649,69925.0,69920.0,0.13845525]
[1730425012048,0.1615759,69925.0,69920.0,0.13845525]
[1730425012244,0.1615759,69925.0,69907.0,0.1766]
[1730425012245,0.0185649,69925.0,69912.0,0.21560708]
[1730425012573,0.143032,69914.0,69913.0,0.13845525]
[1730425012775,0.286061,69916.0,69913.0,0.03540623]
[1730425012910,0.143034,69913.0,69912.0,0.21560708]
[1730425013114,0.143046,69908.0,69905.0,0.21642708]
[1730425013321,0.143047,69907.0,69906.0,0.13845525]
[1730425013532,0.143047,69907.0,69905.0,0.00082]
[1730425013533,0.143049,69906.0,69905.0,0.00082]
[1730425014157,0.15930761,69906.0,69905.0,0.00082]
[1730425016173,0.01134861,69906.0,69905.0,0.13927525]
[1730425016375,0.01134861,69906.0,69905.0,0.15320278]
[1730425016651,0.00491,69910.0,69905.0,0.15320278]
[1730425016803,0.00491,69910.0,69906.0,0.14131592]
[1730425017217,0.00491,69910.0,69906.0,0.13845525]
[1730425017423,0.00491,69910.0,69906.0,0.14131591]
[1730425017624,0.01128125,69909.0,69907.0,0.01560634]
[1730425017823,0.00491,69910.0,69907.0,0.01560634]
[1730425017824,0.147952,69910.0,69907.0,0.15406159]
[1730425018000,0.01128125,69909.0,69907.0,0.15406159]
[1730425018622,0.01128125,69909.0,69908.0,0.21560708]
[1730425018831,0.00491,69910.0,69907.0,0.01560634]
[1730425019178,0.143048,69907.0,69905.0,0.00082]
[1730425019545,0.143048,69907.0,69906.0,0.21560708]
[1730425019775,0.00491,69910.0,69906.0,0.21560708]
[1730425019776,0.00491,69910.0,69906.0,0.35406233]
[1730425019979,0.143032,69914.0,69907.0,0.13845525]
[1730425020322,0.00491,69910.0,69908.0,0.03548823]
[1730425020720,0.147952,69910.0,69908.0,0.03548823]
[1730425020903,0.290993,69910.0,69907.0,0.13845525]
[1730425021202,0.14303,69916.0,69909.0,0.21560708]
[1730425021436,0.00491,69916.0,69910.0,0.17394348]
[1730425021644,0.287662,69921.0,69910.0,0.17394348]
[1730425021645,0.143021,69920.0,69910.0,0.17394348]
[1730425021821,0.001622,69921.0,69910.0,0.17394348]
[1730425021822,0.00491,69917.0,69910.0,0.17394348]
[1730425022058,0.287662,69921.0,69905.0,0.00082]
[1730425022059,0.00491,69910.0,69905.0,0.00082]
[1730425022468,0.152959,69906.0,69905.0,0.00082]
[1730425023177,0.147959,69906.0,69905.0,0.00082]
[1730425027067,0.00491,69906.0,69905.0,0.00082]
[1730425028355,0.147959,69906.0,69905.0,0.00082]
[1730425028555,0.15924025,69906.0,69905.0,0.00082]
[1730425029399,0.16424025,69906.0,69905.0,0.00082]
[1730425030541,0.26424025,69906.0,69905.0,0.00082]
[1730425032392,0.4076955,69906.0,69905.0,0.00082]
[1730425032563,0.6576955,69906.0,69905.0,0.00082]
[1730425033085,0.148028,69872.0,69858.0,0.0967]
[1730425033630,0.15928866,69872.0,69858.0,0.0967]
[1730425034031,0.143133,69865.0,69858.0,0.0967]
[1730425034160,0.143133,69865.0,69853.0,0.286312]
[1730425034161,0.286258,69867.0,69852.0,0.0831]
[1730425034391,0.143129,69867.0,69866.0,0.21560708]
[1730425034746,0.143129,69867.0,69858.0,0.13845525]
[1730425034880,0.00491,69866.0,69858.0,0.13845525]
[1730425035080,0.14314,69862.0,69858.0,0.13845525]
[1730425035383,0.143136,69864.0,69859.0,0.03540623]
[1730425035606,0.00491,69866.0,69860.0,0.13845525]
[1730425035822,0.148042,69866.0,69860.0,0.13845525]
[1730425036192,0.00491,69866.0,69860.0,0.13845525]
[1730425036437,0.143133,69865.0,69860.0,0.13845525]
[1730425036611,0.143133,69865.0,69861.0,0.03894686]
[1730425036816,0.143133,69865.0,69861.0,0.17740211]
[1730425037213,0.143137,69863.0,69861.0,0.17740211]
[1730425037414,0.00491,69866.0,69861.0,0.17740211]
[1730425037649,0.148041,69866.0,69861.0,0.17740211]
[1730425037818,0.00491,69866.0,69862.0,0.03930092]
[1730425038024,0.143116,69874.0,69865.0,0.21560708]
[1730425038221,0.00491,69886.0,69868.0,0.0991]
[1730425038544,0.147985,69894.0,69884.0,0.143093]
[1730425038740,0.00491,69894.0,69885.0,0.13845525]
[1730425038945,0.143076,69893.0,69885.0,0.13845525]
[1730425039102,0.00491,69895.0,69885.0,0.13845525]
[1730425039309,0.00491,69896.0,69886.0,0.35869608]
[1730425039565,0.00491,69897.0,69888.0,0.143085]
[1730425039763,0.00491,69897.0,69889.0,0.38229862]
[1730425039965,0.00491,69897.0,69889.0,0.23635525]
[1730425040160,0.00491,69899.0,69889.0,0.38229862]
[1730425040361,0.00491,69898.0,69890.0,0.096242]
[1730425040631,0.00491,69896.0,69890.0,0.23469725]
[1730425040991,0.143081,69890.0,69889.0,0.0979]
[1730425041193,0.143097,69883.0,69881.0,0.21560708]
[1730425041380,0.143098,69882.0,69881.0,0.21560708]
[1730425041582,0.286187,69885.0,69869.0,0.0798]
[1730425041583,0.143119,69872.0,69869.0,0.0798]
[1730425041780,0.143122,69870.0,69869.0,0.0798]
[1730425042024,0.143131,69866.0,69865.0,0.21560708]
[1730425042421,0.143133,69865.0,69864.0,0.0932]